fUSD/lending_fUSD_20250120
["ID","MTS","AMOUNT","RATE_DAILY","PERIOD"]
[349634989,1737340246926,-500.0,0.00021198,2]
[349634991,1737340246936,-748.98,0.00021198,2]
[349634993,1737340246947,-1494.4,0.00021198,2]
[349634995,1737340246958,-1458.12,0.00021198,2]
[349634997,1737340246968,-537.31,0.00021198,2]
[349634999,1737340246979,-500.0,0.00021198,2]
[349635001,1737340246989,-500.0,0.00021198,2]
[349635003,1737340246999,-500.0,0.00021198,2]
[349635005,1737340247008,-1310.09,0.00021198,2]
[349635007,1737340247018,-830.49,0.00021198,2]
[349635009,1737340247028,-1418.088877,0.00021198,2]
[349635011,1737340247037,-978.97,0.00021198,2]
[349635013,1737340247047,-734.7,0.00021198,2]
[349635015,1737340247057,-782.74,0.00021198,2]
[349635017,1737340247066,-500.0,0.00021198,2]
[349635019,1737340247076,-1854.39,0.00021198,2]
[349635021,1737340247085,-1615.39617,0.00021198,2]
[349635023,1737340247095,-159.844328,0.00021198,2]
[349635025,1737340247104,-622.96,0.00021198,2]
[349635027,1737340247114,-533.26,0.00021198,2]
[349635029,1737340247124,-157.726337,0.00021198,2]
[349635031,1737340247133,-500.0,0.00021198,2]
[349635033,1737340247143,-500.0,0.00021198,2]
[349635035,1737340247153,-1306.13,0.00021198,2]
[349635037,1737340247162,-1622.65,0.00021198,2]
[349635039,1737340247172,-500.0,0.00021198,2]
[349635041,1737340247182,-500.0,0.00021198,2]
[349635043,1737340247191,-761.94,0.00021198,2]
[349635045,1737340247201,-1791.8,0.00021198,2]
[349635047,1737340247210,-958.32,0.00021198,2]
[349635049,1737340247220,-500.0,0.00021198,2]
[349635051,1737340247229,-1598.08,0.00021198,2]
[349635053,1737340247239,-661.34,0.00021198,2]
[349635055,1737340247248,-431.84002939,0.00021198,2]
[349635057,1737340247258,-500.0,0.00021198,2]
[349635059,1737340247267,-793.31,0.00021198,2]
[349635061,1737340247277,-968.44,0.00021198,2]
[349635063,1737340247286,-500.0,0.00021198,2]
[349635083,1737340247296,-2019.06,0.00021198,2]
[349635084,1737340247569,-1776.12,0.00021198,2]
[349635085,1737340247581,-500.0,0.00021198,2]
[349635086,1737340247593,-1250.88,0.00021198,2]
[349635087,1737340247603,-500.0,0.00021198,2]
[349635088,1737340247612,-603.95,0.00021198,2]
[349635089,1737340247622,-522.48,0.00021198,2]
[349635090,1737340247632,-1519.81,0.00021198,2]
[349635091,1737340247642,-1577.62,0.00021198,2]
[349635092,1737340247651,-1735.54,0.00021198,2]
[349635093,1737340247663,-500.0,0.00021198,2]
[349635094,1737340247673,-1244.11,0.00021198,2]
[349635095,1737340247683,-1210.92,0.00021198,2]
[349635096,1737340247693,-5566.66,0.00021198,2]
[349635097,1737340247702,-234.08005749,0.00021198,2]
[349635098,1737340247712,-1932.2,0.00021198,2]
[349635099,1737340247721,-1362.16,0.00021198,2]
[349635100,1737340247731,-3768.01,0.00021198,2]
[349635101,1737340247741,-3111.53,0.00021198,2]
[349635102,1737340247751,-500.0,0.00021198,2]
[349635103,1737340247760,-500.0,0.00021198,2]
[349635104,1737340247770,-500.0,0.00021198,2]
[349635105,1737340247779,-500.0,0.00021198,2]
[349635106,1737340247789,-1586.17,0.00021198,2]
[349635107,1737340247798,-959.96,0.00021198,2]
[349635108,1737340247808,-500.0,0.00021198,2]
[349635109,1737340247817,-500.0,0.00021198,2]
[349635110,1737340247830,-3007.57,0.00021198,2]
[349635111,1737340247840,-500.0,0.00021198,2]
[349635112,1737340247849,-533.69361571,0.00021198,2]
[349635113,1737340247858,-500.0,0.00021198,2]
[349635114,1737340247868,-500.0,0.00021198,2]
[349635115,1737340247878,-1694.98,0.00021198,2]
[349635116,1737340247887,-6917.71,0.00021198,2]
[349635117,1737340247897,-8269.89,0.00021198,2]
[349635118,1737340247907,-500.0,0.00021198,2]
[349635119,1737340247916,-1479.37,0.00021198,2]
[349635120,1737340247926,-500.0,0.00021198,2]
[349635121,1737340247935,-1633.5,0.00021198,2]
[349635122,1737340247944,-13333.67,0.00021198,2]
[349635123,1737340247954,-2507.96,0.00021198,2]
[349635124,1737340247964,-2588.33,0.00021198,2]
[349635125,1737340247973,-500.0,0.00021198,2]
[349635126,1737340247983,-500.0,0.00021198,2]
[349635127,1737340247992,-5033.11,0.00021198,2]
[349635128,1737340248002,-500.0,0.00021198,2]
[349635129,1737340248011,-12109.26,0.00021198,2]
[349635130,1737340248021,-1137.44,0.00021198,2]
[349635131,1737340248031,-2633.81,0.00021198,2]
[349635132,1737340248042,-795.37,0.00021198,2]
[349635133,1737340248051,-1856.12,0.00021198,2]
[349635134,1737340248060,-1114.66,0.00021198,2]
[349635135,1737340248070,-857.74,0.00021198,2]
[349635136,1737340248081,-500.0,0.00021198,2]
[349635137,1737340248092,-500.0,0.00021198,2]
[349635138,1737340248101,-500.0,0.00021198,2]
[349635139,1737340248110,-500.0,0.00021198,2]
[349635140,1737340248120,-894.52,0.00021198,2]
[349635141,1737340248130,-2935.76,0.00021198,2]
[349635142,1737340248139,-500.0,0.00021198,2]
[349635143,1737340248149,-1028.2,0.00021198,2]
[349635144,1737340248158,-540.41501932,0.00021198,2]
[349635145,1737340248175,-1509.54,0.00021198,2]
[349635146,1737340248186,-773.97,0.00021198,2]
[349635147,1737340248197,-7231.03,0.00021198,2]
[349635148,1737340248207,-500.0,0.00021198,2]
[349635149,1737340248218,-1298.62,0.00021198,2]
[349635150,1737340248228,-693.59,0.00021198,2]
[349635151,1737340248238,-2950.97,0.00021198,2]
[349635152,1737340248247,-4391.02,0.00021198,2]
[349635153,1737340248258,-2092.95,0.00021198,2]
[349635154,1737340248271,-189532.97610861,0.00021199,2]
[349635155,1737340248281,-866.71,0.00021199,2]
[349635156,1737340248291,-1147.1,0.00021199,2]
[349635157,1737340248302,-1501.2,0.00021199,2]
[349635158,1737340248312,-500.0,0.00021199,2]
[349635159,1737340248323,-896.43,0.00021199,2]
[349635160,1737340248335,-874.61,0.00021199,2]
[349635161,1737340248345,-655.22,0.00021199,2]
[349635162,1737340248355,-1494.21,0.00021199,2]
[349635163,1737340248366,-606.48,0.00021199,2]
[349635164,1737340248377,-500.0,0.00021199,2]
[349635165,1737340248387,-605.16,0.00021199,2]
[349635166,1737340248398,-1727.89,0.00021199,2]
[349635167,1737340248408,-500.0,0.00021199,2]
[349635168,1737340248418,-500.0,0.00021199,2]
[349635169,1737340248428,-593.88,0.00021199,2]
[349635170,1737340248439,-532.5,0.00021199,2]
[349635171,1737340248448,-500.0,0.00021199,2]
[349635172,1737340248458,-500.0,0.00021199,2]
[349635173,1737340248467,-500.0,0.00021199,2]
[349635174,1737340248477,-500.0,0.00021199,2]
[349635175,1737340248488,-500.0,0.00021199,2]
[349635176,1737340248498,-500.0,0.00021199,2]
[349635177,1737340248508,-500.0,0.00021199,2]
[349635178,1737340248518,-1268.73,0.00021199,2]
[349635179,1737340248528,-1144.69,0.00021199,2]
[349635180,1737340248538,-2400.46,0.00021199,2]
[349635181,1737340248548,-2010.11,0.00021199,2]
[349635182,1737340248557,-2430.39,0.00021199,2]
[349635183,1737340248567,-2235.87,0.00021199,2]
[349635184,1737340248578,-500.0,0.00021199,2]
[349635185,1737340248592,-500.0,0.00021199,2]
[349635186,1737340248602,-1501.67,0.00021199,2]
[349635187,1737340248612,-702.46,0.00021199,2]
[349635188,1737340248623,-500.0,0.00021199,2]
[349635189,1737340248633,-521.78181487,0.00021199,2]
[349635190,1737340248643,-1175.28,0.00021199,2]
[349635191,1737340248653,-500.0,0.00021199,2]
[349635192,1737340248664,-733.95,0.00021199,2]
[349635193,1737340248675,-1105.85,0.00021199,2]
[349635194,1737340248686,-1999.22,0.00021199,2]
[349635195,1737340248696,-1366.24,0.00021199,2]
[349635196,1737340248707,-905.16,0.00021199,2]
[349635197,1737340248717,-1053.13,0.00021199,2]
[349635198,1737340248727,-500.0,0.00021199,2]
[349635199,1737340248739,-1598.97,0.00021199,2]
[349635200,1737340248753,-862.28,0.00021199,2]
[349635201,1737340248765,-845.52,0.00021199,2]
[349635202,1737340248779,-1343.64,0.00021199,2]
[349635203,1737340248792,-500.0,0.00021199,2]
[349635204,1737340248803,-1441.34,0.00021199,2]
[349635205,1737340248813,-525.15,0.00021199,2]
[349635206,1737340248823,-906.96,0.00021199,2]
[349635207,1737340248835,-531.09,0.00021199,2]
[349635208,1737340248845,-1036.56,0.00021199,2]
[349635209,1737340248856,-266.81053405,0.00021199,2]
[349635210,1737340248866,-1846.9,0.00021199,2]
[349635211,1737340248877,-1078.86,0.00021199,2]
[349635212,1737340248887,-569.46,0.00021199,2]
[349635213,1737340248898,-182.96957841,0.00021199,2]
[349635214,1737340248908,-500.0,0.000212,2]
[349635215,1737340248919,-500.0,0.000212,2]
[349635216,1737340248929,-500.0,0.000212,2]
[349635217,1737340248938,-500.0,0.000212,2]
[349635218,1737340248949,-500.0,0.000212,2]
[349635219,1737340248959,-500.0,0.000212,2]
[349635220,1737340248969,-500.0,0.000212,2]
[349635221,1737340248980,-500.0,0.000212,2]
[349635222,1737340248990,-500.0,0.000212,2]
[349635223,1737340249001,-523.15937021,0.000212,2]
[349635224,1737340249011,-673.32,0.000212,2]
[349635225,1737340249021,-150.0,0.000213,2]
[349635226,1737340249031,-1115.08241059,0.00021372,2]
[349635227,1737340249041,-500.0,0.00021471,2]
[349635228,1737340249051,-586.23355793,0.00021471,2]
[349635229,1737340249061,-500.0,0.00021471,2]
[349635230,1737340249071,-3246.68,0.00021471,2]
[349635231,1737340249083,-1349.67,0.00021471,2]
[349635232,1737340249094,-500.0,0.00021471,2]
[349635233,1737340249104,-1549.99,0.00021471,2]
[349635234,1737340249114,-500.0,0.00021471,2]
[349635235,1737340249124,-1455.67,0.00021471,2]
[349635236,1737340249135,-702.69,0.00021471,2]
[349635237,1737340249145,-2724.48,0.00021471,2]
[349635238,1737340249156,-1218.47,0.00021471,2]
[349635239,1737340249166,-3960.42,0.00021471,2]
[349635240,1737340249176,-500.0,0.00021471,2]
[349635241,1737340249186,-2016.97,0.00021471,2]
[349635242,1737340249196,-1146.65,0.00021471,2]
[349635243,1737340249207,-613.37,0.00021471,2]
[349635244,1737340249218,-1191.87,0.00021471,2]
[349635245,1737340249227,-500.0,0.00021471,2]
[349635246,1737340249237,-2996.76,0.00021471,2]
[349635247,1737340249247,-500.0,0.00021471,2]
[349635248,1737340249256,-1342.19,0.00021471,2]
[349635249,1737340249266,-500.0,0.00021471,2]
[349635250,1737340249276,-1122.43,0.00021471,2]
[349635251,1737340249286,-500.0,0.00021471,2]
[349635252,1737340249296,-500.0,0.00021471,2]
[349635253,1737340249306,-500.0,0.00021471,2]
[349635254,1737340249316,-587.37,0.00021471,2]
[349635255,1737340249325,-500.0,0.00021471,2]
[349635256,1737340249337,-604.14,0.00021471,2]
[349635257,1737340249347,-500.0,0.00021472,2]
[349635258,1737340249357,-500.0,0.00021472,2]
[349635259,1737340249367,-505.19842459,0.00021472,2]
[349635260,1737340249378,-500.0,0.00021472,2]
[349635261,1737340249388,-500.0,0.00021472,2]
[349635262,1737340249398,-500.0,0.00021472,2]
[349635263,1737340249408,-500.0,0.00021472,2]
[349635264,1737340249418,-500.0,0.00021472,2]
[349635265,1737340249428,-512.82643838,0.00021472,2]
[349635266,1737340249438,-520.86035368,0.00021472,2]
[349635267,1737340249448,-510.02245188,0.00021472,2]
[349635268,1737340249458,-500.0,0.00021472,2]
[349635269,1737340249468,-500.0,0.00021472,2]
[349635270,1737340249478,-500.0,0.00021472,2]
[349635271,1737340249488,-782.35,0.00021472,2]
[349635272,1737340249498,-375.43195937,0.00021472,2]
[349635273,1737340249508,-500.0,0.00021472,2]
[349635274,1737340249518,-500.0,0.00021472,2]
[349635275,1737340249528,-500.0,0.00021472,2]
[349635276,1737340249538,-463.69188977,0.00021472,2]
[349635277,1737340249549,-643.9195359,0.00021472,2]
[349635278,1737340249559,-517.7,0.00021472,2]
[349635279,1737340249570,-500.0,0.00021472,2]
[349635280,1737340249582,-1438.64,0.00021472,2]
[349635281,1737340249594,-856.15,0.00021472,2]
[349635282,1737340249605,-500.0,0.00021472,2]
[349635283,1737340249616,-640.64,0.00021472,2]
[349635284,1737340249627,-500.0,0.00021472,2]
[349635285,1737340249637,-500.0,0.00021472,2]
[349635286,1737340249648,-701.97,0.00021472,2]
[349635287,1737340249659,-1274.79,0.00021472,2]
[349635288,1737340249671,-500.0,0.00021472,2]
[349635289,1737340249683,-1033.14,0.00021472,2]
[349635290,1737340249693,-511.63757861,0.00021472,2]
[349635291,1737340249704,-500.0,0.00021472,2]
[349635292,1737340249714,-736.02,0.00021472,2]
[349635293,1737340249724,-500.0,0.00021472,2]
[349635294,1737340249733,-500.0,0.00021472,2]
[349635295,1737340249743,-748.98,0.00021472,2]
[349635296,1737340249753,-514.92011337,0.00021472,2]
[349635297,1737340249764,-1494.4,0.00021472,2]
[349635298,1737340249775,-1458.12,0.00021472,2]
[349635299,1737340249785,-512.65439323,0.00021472,2]
[349635300,1737340249796,-537.31,0.00021472,2]
[349635301,1737340249806,-500.0,0.00021472,2]
[349635302,1737340249816,-500.0,0.00021472,2]
[349635303,1737340249826,-500.0,0.00021472,2]
[349635304,1737340249837,-500.0,0.00021472,2]
[349635305,1737340249847,-1250.91,0.00021472,2]
[349635306,1737340249857,-1310.09,0.00021472,2]
[349635307,1737340249867,-830.49,0.00021472,2]
[349635308,1737340249877,-500.0,0.00021472,2]
[349635309,1737340249888,-1418.088877,0.00021472,2]
[349635310,1737340249898,-500.0,0.00021472,2]
[349635311,1737340249909,-978.97,0.00021472,2]
[349635312,1737340249919,-734.7,0.00021472,2]
[349635313,1737340249928,-782.74,0.00021472,2]
[349635314,1737340249938,-500.0,0.00021472,2]
[349635315,1737340249948,-405.48545273,0.00021472,2]
[349635316,1737340250120,-1854.39,0.00021472,2]
[349635317,1737340250132,-1615.39617,0.00021472,2]
[349635318,1737340250142,-500.0,0.00021472,2]
[349635319,1737340250152,-622.96,0.00021472,2]
[349635320,1737340250162,-536.92056398,0.00021472,2]
[349635321,1737340250172,-533.26,0.00021472,2]
[349635322,1737340250182,-500.0,0.00021472,2]
[349635323,1737340250193,-500.0,0.00021472,2]
[349635324,1737340250203,-1306.13,0.00021472,2]
[349635325,1737340250213,-1622.65,0.00021472,2]
[349635326,1737340250223,-500.0,0.00021472,2]
[349635327,1737340250234,-364.04936891,0.00021472,2]
[349635328,1737340250244,-761.94,0.00021472,2]
[349635329,1737340250253,-1791.8,0.00021472,2]
[349635330,1737340250263,-958.32,0.00021472,2]
[349635331,1737340250272,-500.0,0.00021472,2]
[349635332,1737340250282,-500.0,0.00021472,2]
[349635333,1737340250292,-1598.08,0.00021472,2]
[349635334,1737340250301,-661.34,0.00021472,2]
[349635335,1737340250310,-500.0,0.00021472,2]
[349635336,1737340250319,-793.31,0.00021472,2]
[349635337,1737340250331,-968.44,0.00021472,2]
[349635338,1737340250341,-500.0,0.00021472,2]
[349635339,1737340250351,-244.83237656,0.00021472,2]
[349635340,1737340250360,-2019.06,0.00021472,2]
[349635341,1737340250370,-500.0,0.00021472,2]
[349635342,1737340250379,-1776.12,0.00021472,2]
[349635343,1737340250389,-500.0,0.00021472,2]
[349635344,1737340250398,-1250.88,0.00021472,2]
[349635345,1737340250408,-500.0,0.00021472,2]
[349635346,1737340250418,-603.95,0.00021472,2]
[349635347,1737340250427,-825.1,0.00021472,2]
[349635348,1737340250436,-600.52549484,0.00021472,2]
[349635349,1737340250446,-522.48,0.00021472,2]
[349635350,1737340250455,-1519.81,0.00021472,2]
[349635351,1737340250464,-500.0,0.00021472,2]
[349635352,1737340250474,-1577.62,0.00021472,2]
[349635353,1737340250483,-1735.54,0.00021472,2]
[349635354,1737340250492,-500.0,0.00021472,2]
[349635355,1737340250501,-500.0,0.00021472,2]
[349635356,1737340250510,-245.68669668,0.00021472,2]
[349635357,1737340250519,-1244.11,0.00021472,2]
[349635358,1737340250528,-1210.92,0.00021472,2]
[349635359,1737340250537,-1230.36,0.00021472,2]
[349635360,1737340250546,-523.82,0.00021472,2]
[349635361,1737340250556,-500.0,0.00021472,2]
[349635362,1737340250565,-500.0,0.00021472,2]
[349635363,1737340250574,-500.0,0.00021472,2]
[349635364,1737340250589,-500.0,0.00021472,2]
[349635365,1737340250598,-500.0,0.00021472,2]
[349635366,1737340250608,-500.0,0.00021472,2]
[349635367,1737340250617,-566.06,0.00021472,2]
[349635368,1737340250629,-5566.66,0.00021472,2]
[349635369,1737340250639,-1932.2,0.00021472,2]
[349635370,1737340250649,-1362.16,0.00021472,2]
[349635371,1737340250659,-606.38,0.00021472,2]
[349635372,1737340250669,-3768.01,0.00021472,2]
[349635373,1737340250679,-3111.53,0.00021472,2]
[349635374,1737340250689,-500.0,0.00021472,2]
[349635375,1737340250698,-509.7979524,0.00021472,2]
[349635376,1737340250707,-500.0,0.00021472,2]
[349635377,1737340250717,-500.0,0.00021472,2]
[349635378,1737340250726,-500.0,0.00021472,2]
[349635379,1737340250735,-500.0,0.00021472,2]
[349635380,1737340250745,-500.0,0.00021472,2]
[349635381,1737340250754,-1586.17,0.00021472,2]
[349635382,1737340250763,-959.96,0.00021472,2]
[349635383,1737340250772,-500.0,0.00021472,2]
[349635384,1737340250780,-310.21548746,0.00021472,2]
[349635385,1737340250789,-500.0,0.00021472,2]
[349635386,1737340250799,-500.0,0.00021472,2]
[349635387,1737340250808,-3007.57,0.00021472,2]
[349635388,1737340250817,-501.93106406,0.00021472,2]
[349635389,1737340250826,-500.0,0.00021472,2]
[349635390,1737340250838,-518.8843075,0.00021472,2]
[349635391,1737340250847,-500.0,0.00021472,2]
[349635392,1737340250856,-514.8293035,0.00021472,2]
[349635393,1737340250866,-506.37506124,0.00021472,2]
[349635394,1737340250875,-500.0,0.00021472,2]
[349635395,1737340250885,-500.0,0.00021472,2]
[349635396,1737340250895,-179.81647299,0.00021472,2]
[349635397,1737340250905,-1694.98,0.00021472,2]
[349635398,1737340250914,-1122.91,0.00021472,2]
[349635399,1737340250924,-6917.71,0.00021472,2]
[349635400,1737340250934,-492.33928357,0.00021472,2]
[349635401,1737340250943,-8269.89,0.00021472,2]
[349635402,1737340250952,-1208.33,0.00021472,2]
[349635403,1737340250961,-500.0,0.00021472,2]
[349635404,1737340250971,-500.0,0.00021472,2]
[349635405,1737340250979,-500.0,0.00021472,2]
[349635406,1737340250988,-500.0,0.00021472,2]
[349635407,1737340250998,-500.0,0.00021472,2]
[349635408,1737340251008,-1479.37,0.00021472,2]
[349635409,1737340251017,-500.0,0.00021472,2]
[349635410,1737340251026,-341.88766204,0.00021472,2]
[349635411,1737340251035,-500.0,0.00021472,2]
[349635412,1737340251044,-504.55,0.00021472,2]
[349635413,1737340251053,-1633.5,0.00021472,2]
[349635414,1737340251062,-500.0,0.00021472,2]
[349635415,1737340251071,-524.35,0.00021472,2]
[349635416,1737340251081,-13333.67,0.00021472,2]
[349635417,1737340251091,-2507.96,0.00021472,2]
[349635418,1737340251100,-500.0,0.00021472,2]
[349635419,1737340251109,-2588.33,0.00021472,2]
[349635420,1737340251119,-500.0,0.00021472,2]
[349635421,1737340251128,-500.0,0.00021472,2]
[349635422,1737340251137,-500.0,0.00021472,2]
[349635423,1737340251154,-5033.11,0.00021472,2]
[349635424,1737340251172,-500.0,0.00021472,2]
[349635425,1737340251187,-500.0,0.00021472,2]
[349635426,1737340251201,-12109.26,0.00021472,2]
[349635427,1737340251217,-1137.44,0.00021472,2]
[349635428,1737340251233,-2633.81,0.00021472,2]
[349635429,1737340251249,-795.37,0.00021472,2]
[349635430,1737340251265,-500.0,0.00021472,2]
[349635431,1737340251278,-1856.12,0.00021472,2]
[349635432,1737340251290,-1114.66,0.00021472,2]
[349635433,1737340251304,-857.74,0.00021472,2]
[349635434,1737340251319,-500.0,0.00021472,2]
[349635435,1737340251334,-500.0,0.00021472,2]
[349635436,1737340251350,-291.37517494,0.00021472,2]
[349635437,1737340251365,-496.39715978,0.00021472,2]
[349635438,1737340251381,-894.52,0.00021472,2]
[349635439,1737340251395,-2935.76,0.00021472,2]
[349635440,1737340251411,-500.0,0.00021472,2]
[349635441,1737340251426,-500.0,0.00021472,2]
[349635442,1737340251439,-1028.2,0.00021472,2]
[349635443,1737340251454,-503.23345558,0.00021472,2]
[349635444,1737340251468,-508.17519858,0.00021472,2]
[349635445,1737340251484,-1509.54,0.00021472,2]
[349635446,1737340251499,-773.97,0.00021472,2]
[349635447,1737340251511,-492.0,0.00021472,2]
[349635448,1737340251524,-500.0,0.00021472,2]
[349635449,1737340251536,-500.0,0.00021472,2]
[349635450,1737340251554,-7231.03,0.00021472,2]
[349635451,1737340251565,-500.0,0.00021472,2]
[349635452,1737340251575,-1298.62,0.00021472,2]
[349635453,1737340251592,-693.59,0.00021472,2]
[349635454,1737340251608,-2950.97,0.00021472,2]
[349635455,1737340251621,-4391.02,0.00021472,2]
[349635456,1737340251635,-2092.95,0.00021472,2]
[349635457,1737340251647,-177.82129764,0.00021473,2]
[349635458,1737340251660,-160.02021905,0.00021473,2]
[349635459,1737340251674,-160.02023195,0.00021473,2]
[349635460,1737340251687,-500.0,0.00021473,2]
[349635461,1737340251700,-160.74375598,0.00021473,2]
[349635462,1737340251712,-866.71,0.00021473,2]
[349635463,1737340251725,-1147.1,0.00021473,2]
[349635464,1737340251738,-1501.2,0.00021473,2]
[349635465,1737340251752,-499.81349549,0.00021473,2]
[349635466,1737340251765,-896.43,0.00021473,2]
[349635467,1737340251778,-874.61,0.00021473,2]
[349635468,1737340251791,-655.22,0.00021473,2]
[349635469,1737340251806,-1494.21,0.00021473,2]
[349635470,1737340251820,-606.48,0.00021473,2]
[349635471,1737340251835,-500.0,0.00021473,2]
[349635472,1737340251847,-605.16,0.00021473,2]
[349635473,1737340251860,-1727.89,0.00021473,2]
[349635474,1737340251873,-500.0,0.00021473,2]
[349635475,1737340251886,-500.0,0.00021473,2]
[349635476,1737340251899,-593.88,0.00021473,2]
[349635477,1737340251912,-532.5,0.00021473,2]
[349635478,1737340251925,-500.0,0.00021473,2]
[349635479,1737340251938,-500.0,0.00021473,2]
[349635480,1737340251953,-500.0,0.00021473,2]
[349635481,1737340251965,-500.0,0.00021473,2]
[349635482,1737340251978,-500.0,0.00021473,2]
[349635483,1737340251992,-500.0,0.00021473,2]
[349635484,1737340252005,-500.0,0.00021473,2]
[349635485,1737340252019,-1268.73,0.00021473,2]
[349635486,1737340252032,-1144.69,0.00021473,2]
[349635487,1737340252045,-2400.46,0.00021473,2]
[349635488,1737340252059,-2010.11,0.00021473,2]
[349635489,1737340252071,-2430.39,0.00021473,2]
[349635490,1737340252084,-2235.87,0.00021473,2]
[349635491,1737340252096,-500.0,0.00021473,2]
[349635492,1737340252110,-500.0,0.00021473,2]
[349635493,1737340252123,-1501.67,0.00021473,2]
[349635494,1737340252136,-702.46,0.00021473,2]
[349635495,1737340252150,-153.86519765,0.00021473,2]
[349635496,1737340252164,-1175.28,0.00021473,2]
[349635497,1737340252178,-500.0,0.00021473,2]
[349635498,1737340252192,-733.95,0.00021473,2]
[349635499,1737340252206,-1105.85,0.00021473,2]
[349635500,1737340252218,-1999.22,0.00021473,2]
[349635501,1737340252233,-1366.24,0.00021473,2]
[349635502,1737340252246,-905.16,0.00021473,2]
[349635503,1737340252260,-1053.13,0.00021473,2]
[349635504,1737340252272,-500.0,0.00021473,2]
[349635505,1737340252286,-1598.97,0.00021473,2]
[349635506,1737340252298,-862.28,0.00021473,2]
[349635507,1737340252312,-845.52,0.00021473,2]
[349635508,1737340252328,-1343.64,0.00021473,2]
[349635509,1737340252345,-500.0,0.00021473,2]
[349635510,1737340252360,-1441.34,0.00021473,2]
[349635511,1737340252375,-525.15,0.00021473,2]
[349635512,1737340252389,-906.96,0.00021473,2]
[349635513,1737340252403,-531.09,0.00021473,2]
[349635514,1737340252419,-1036.56,0.00021473,2]
[349635515,1737340252433,-1846.9,0.00021473,2]
[349635516,1737340252447,-1078.86,0.00021473,2]
[349635517,1737340252460,-569.46,0.00021473,2]
[349635518,1737340252474,-500.0,0.00021474,2]
[349635519,1737340252487,-500.0,0.00021474,2]
[349635520,1737340252500,-504.49511802,0.00021474,2]
[349635521,1737340252514,-500.0,0.00021474,2]
[349635522,1737340252527,-486.74383627,0.00021474,2]
[349635523,1737340252540,-500.0,0.00021474,2]
[349635524,1737340252554,-500.0,0.00021474,2]
[349635525,1737340252569,-500.0,0.00021474,2]
[349635526,1737340252593,-500.0,0.00021474,2]
[349635527,1737340252616,-673.32,0.00021474,2]
[349635528,1737340252630,-1115.08241057,0.00021548,2]
[349635529,1737340252641,-2148.2872853,0.0002156,2]
[349635530,1737340252947,-1115.08241057,0.00021724,2]
[349635531,1737340252958,-1548.82591262,0.00021739,2]
[349635532,1737340252968,-500.0,0.00021745,2]
[349635533,1737340252978,-500.0,0.00021745,2]
[349635534,1737340252988,-3246.68,0.00021745,2]
[349635535,1737340252998,-1349.67,0.00021745,2]
[349635536,1737340253007,-401.34581874,0.00021745,2]
[349635537,1737340253016,-1549.99,0.00021745,2]
[349635538,1737340253026,-500.0,0.00021745,2]
[349635539,1737340253036,-1455.67,0.00021745,2]
[349635540,1737340253045,-702.69,0.00021745,2]
[349635541,1737340253055,-2724.48,0.00021745,2]
[349635542,1737340253064,-1218.47,0.00021745,2]
[349635543,1737340253074,-3960.42,0.00021745,2]
[349635544,1737340253086,-500.0,0.00021745,2]